bitfinex-derivatives/quotes_SOLF0:USTF0_20240904
["timestamp","ask_amount","ask_price","bid_price","bid_amount"]
[1725476191546,3.7482,133.39,133.36,12.9689]
[1725476192258,3.748,133.4,133.37,3.7486]
[1725476192555,12.98397329,133.42,133.36,9.27524257]
[1725476193247,3.7485,133.38,133.36,13.02424257]
[1725476193453,12.98397329,133.42,133.36,13.02424257]
[1725476194149,3.7484,133.39,133.36,13.02424257]
[1725476195356,3.7486,133.38,133.36,0.05524257]
[1725476196053,3.7487,133.37,133.36,0.05524257]
[1725476198357,3.7486,133.38,133.36,0.05524257]
[1725476198754,9.22,133.41,133.36,0.05524257]
[1725476199359,9.22,133.41,133.36,3.80424257]
[1725476199556,3.7486,133.38,133.36,3.80424257]
[1725476200759,3.7486,133.38,133.36,0.05524257]
[1725476201354,3.7487,133.37,133.36,0.05524257]
[1725476208659,3.7499,133.34,133.31,3.7503]
[1725476208961,1.3648,133.36,133.31,3.7503]
[1725476209158,1.3648,133.36,133.3,9.22]
[1725476209663,3.80131199,133.34,133.32,0.05658325]
[1725476210257,3.7499,133.33,133.32,0.05658325]
[1725476212265,0.05151199,133.34,133.32,9.27658325]
[1725476212673,0.05151199,133.34,133.32,0.05658325]
[1725476214270,3.7499,133.33,133.32,0.05658325]
[1725476219564,3.7512,133.29,133.27,9.22]
[1725476219964,3.7512,133.29,133.27,12.9715]
[1725476220168,3.7509,133.3,133.27,12.9715]
[1725476220371,16.75,133.34,133.27,12.9715]
[1725476220674,3.7512,133.29,133.27,9.27513931]
[1725476221067,0.05668471,133.3,133.24,9.22]
[1725476221265,10.6203,133.3,133.24,9.22]
[1725476221471,1.4003,133.3,133.27,9.22]
[1725476221668,3.7521,133.25,133.21,1.3483]
[1725476221868,1.4003,133.3,133.24,9.22]
[1725476222277,3.80486893,133.28,133.26,0.05441288]
[1725476222474,0.05336893,133.28,133.26,0.05441288]
[1725476223170,3.7515,133.27,133.26,0.05441288]
[1725476224082,3.7515,133.27,133.26,9.27441288]
[1725476224682,3.7515,133.27,133.26,0.05441288]
[1725476225885,3.83742342,133.28,133.21,5.1015]
[1725476225886,3.7527,133.23,133.21,9.22]
[1725476226277,10.6183,133.27,133.2,3.77579891]
[1725476226480,10.6183,133.27,133.2,9.22]
[1725476226781,3.81707678,133.26,133.21,9.22]
[1725476226981,3.7526,133.24,133.22,0.04775894]
[1725476228683,3.803699,133.25,133.22,9.26775894]
[1725476232081,3.803699,133.25,133.22,13.02065894]
[1725476232277,0.051499,133.25,133.24,9.22]
[1725476233988,3.803599,133.25,133.24,9.22]
[1725476234388,3.803599,133.25,133.22,13.02055894]
[1725476234587,3.7524,133.24,133.22,9.26775894]
[1725476234887,0.051499,133.25,133.22,0.04775894]
[1725476235377,9.22,133.24,133.22,0.04775894]
[1725476235577,9.22,133.23,133.22,0.04775894]
[1725476235988,12.9727,133.23,133.22,0.04775894]
[1725476236595,3.7526,133.24,133.22,0.04775894]
[1725476236891,1.430799,133.25,133.22,0.04775894]
[1725476237779,0.051499,133.25,133.23,3.7525]
[1725476239285,3.803599,133.25,133.23,3.7525]
[1725476239489,3.803599,133.25,133.22,3.80055894]
[1725476240092,3.803599,133.25,133.22,0.04775894]
[1725476241403,3.803599,133.25,133.23,3.7526]
[1725476242405,0.051499,133.25,133.23,3.7526]
[1725476242601,0.051499,133.25,133.22,0.04775894]
[1725476243000,0.051499,133.25,133.23,3.7524]
[1725476244302,0.051499,133.25,133.24,3.7524]
[1725476244804,0.051499,133.25,133.22,0.04775894]
[1725476245305,23.05,133.24,133.22,0.04775894]
[1725476245502,1.3872,133.23,133.22,0.04775894]
[1725476245706,3.7534,133.21,133.17,3.7542]
[1725476245905,25.8359,133.23,133.17,3.7542]
[1725476246410,3.7536,133.2,133.17,3.7542]
[1725476246807,3.81096009,133.2,133.17,3.80898874]
[1725476247207,3.7541,133.18,133.17,0.05478874]
[1725476247406,0.05736009,133.2,133.17,0.05478874]
[1725476249313,23.05,133.19,133.08,23.05]
[1725476249608,23.05,133.16,133.09,6.11623328]
[1725476249813,23.05,133.16,133.09,3.69255031]
[1725476250208,23.05,133.16,133.11,0.05243155]
[1725476250209,0.05540765,133.14,133.11,0.05243155]
[1725476251707,0.05540765,133.14,133.12,23.05]
[1725476251913,23.05,133.21,133.12,23.05]
[1725476252112,24.4745,133.21,133.12,23.05]
[1725476253015,0.05041862,133.18,133.15,0.05558769]
[1725476254620,23.05,133.17,133.15,0.05558769]
[1725476254916,1.4294,133.16,133.15,0.05558769]
[1725476255106,1.4294,133.16,133.07,24.3756]
[1725476255306,2.7951,133.16,133.07,28.10917087]
[1725476256108,0.04810561,133.13,133.1,0.05638099]
[1725476262622,0.04810561,133.13,133.11,23.05]
[1725476263022,0.04810561,133.13,133.1,0.05638099]
[1725476264122,23.09810561,133.13,133.1,0.05638099]
[1725476267124,0.04810561,133.13,133.1,0.05638099]
[1725476268216,23.05,133.11,133.1,0.05638099]
[1725476269119,23.09810561,133.13,133.1,0.05638099]
[1725476269326,0.04810561,133.13,133.1,0.05638099]
[1725476270733,0.04810561,133.13,133.1,23.10638099]
[1725476271928,0.04810561,133.13,133.1,0.05638099]
[1725476281526,28.90810561,133.13,133.1,0.05638099]
[1725476282030,28.86,133.11,133.05,3.8294682]
[1725476282232,32.5817339,133.11,133.04,3.80174291]
[1725476282429,32.5817339,133.11,133.01,28.86]
[1725476282430,28.86,133.09,133.01,28.86]
[1725476283128,0.05725723,133.06,133.04,0.05392513]
[1725476292542,0.05725723,133.06,133.05,3.7577]
[1725476292842,0.05725723,133.06,133.04,0.05392513]
[1725476293037,23.09,133.05,132.93,7.5221]
[1725476293238,23.09,133.03,132.94,1.3503]
[1725476293441,23.09,133.03,132.94,5.02155244]
[1725476293636,26.8485,133.03,132.99,3.7593]
[1725476294141,3.80837746,133.02,133.0,0.05265066]
[1725476294339,28.92967746,133.02,133.0,0.05265066]
[1725476294739,3.7589,133.01,133.0,0.05265066]
[1725476295240,28.92967746,133.02,133.0,0.05265066]
[1725476295545,0.04967746,133.02,133.0,0.05265066]
[1725476295938,3.80847746,133.02,133.0,0.05265066]
[1725476297244,3.7589,133.01,133.0,0.05265066]
[1725476297940,3.80837746,133.02,133.0,0.05265066]
[1725476298144,0.04967746,133.02,133.0,0.05265066]
[1725476299140,0.04967746,133.02,133.0,3.81165066]
[1725476300344,0.04967746,133.02,133.01,3.7589]
[1725476301443,0.04967746,133.02,133.0,3.81175066]
[1725476301649,0.04967746,133.02,133.0,0.05265066]
[1725476302348,0.04967746,133.02,133.0,3.81175066]
[1725476304646,0.04967746,133.02,133.01,3.7589]
[1725476305942,0.04967746,133.02,133.01,7.4820199]
[1725476306143,11.278,133.08,133.01,3.7231199]
[1725476306451,7.521,133.08,133.0,2.8235]
[1725476306645,3.7572,133.07,133.04,3.7578]
[1725476306843,7.521,133.08,133.03,3.68702786]
[1725476307042,0.05075061,133.07,133.04,0.05356544]
[1725476307240,0.05075061,133.07,133.05,3.7576]
[1725476308445,3.80795061,133.07,133.05,3.7576]
[1725476309144,3.7575,133.06,133.04,0.05356544]
[1725476309544,0.05075061,133.07,133.04,0.05356544]
[1725476309848,3.80815061,133.07,133.04,3.81156544]
[1725476310948,3.7576,133.06,133.04,0.05356544]
[1725476311547,3.7576,133.06,133.04,3.81156544]
[1725476311943,3.7577,133.05,133.04,0.05356544]
[1725476313450,3.7576,133.06,133.04,0.05356544]
[1725476313653,28.93075061,133.07,133.04,0.05356544]
[1725476313849,3.7577,133.05,133.04,0.05356544]
[1725476317557,26.8576,133.06,133.04,3.81156544]
[1725476318161,3.7575,133.06,133.04,3.81146544]
[1725476320461,0.05075061,133.07,133.05,3.7575]
[1725476320462,3.80805061,133.07,133.05,3.7575]
[1725476324957,0.05075061,133.07,133.06,3.7575]
[1725476326755,30.621,133.15,133.06,23.1]
[1725476326964,1.4234,133.14,133.06,23.1]
[1725476327366,3.7558,133.12,133.07,1.3542]
[1725476327564,3.77808672,133.11,133.05,23.1]
[1725476327764,23.1,133.11,133.03,23.1]
[1725476327961,3.80518026,133.09,133.07,0.04815214]
[1725476328166,23.1,133.08,133.07,0.04815214]
[1725476328368,24.4451,133.08,133.07,0.04815214]
[1725476328771,28.202,133.08,133.07,0.04815214]
[1725476332662,24.4451,133.08,133.01,3.74586597]
[1725476332865,24.4451,133.08,132.97,1.4152]
[1725476332866,23.1,133.06,132.97,1.4152]
[1725476333066,3.7581,133.04,133.02,3.7586]
[1725476333565,3.80857597,133.04,133.02,3.81136832]
[1725476334669,3.80857597,133.04,133.02,0.05276832]
[1725476335375,3.7583,133.03,133.02,0.05276832]
[1725476336173,26.90867597,133.04,133.02,0.05276832]
[1725476336369,3.80867597,133.04,133.02,0.05276832]
[1725476337077,1.4323,133.1,133.02,3.89487358]
[1725476337376,3.81203007,133.09,133.01,26.85864661]
[1725476337577,3.7573,133.07,133.04,3.7578]
[1725476337869,45.65,133.06,132.83,11.292]
[1725476338070,45.65,133.06,132.96,3.7602]
[1725476338071,3.7593,133.0,132.96,3.7602]
[1725476338270,0.0549762,132.99,132.97,0.0544095]
[1725476338774,0.0549762,132.99,132.97,3.8144095]
[1725476339571,0.0549762,132.99,132.98,3.7597]
[1725476341976,3.7582,133.04,133.0,3.7589]
[1725476342376,3.7599,132.98,132.85,7.5268]
[1725476342582,23.1,132.99,132.9,127.50909717]
[1725476342782,23.1,132.97,132.9,108.23769223]
[1725476342983,3.761,132.94,132.92,0.04944838]
[1725476343587,0.05375465,132.95,132.92,3.81064838]
[1725476343980,0.05375465,132.95,132.92,0.04944838]
[1725476344282,0.05375465,132.95,132.92,23.14944838]
[1725476344477,0.05375465,132.95,132.94,23.1]
[1725476344781,0.05375465,132.95,132.94,26.8609]
[1725476344981,0.05375465,132.95,132.94,3.7609]
[1725476346080,0.05375465,132.95,132.93,3.7609]
[1725476347281,0.05375465,132.95,132.94,3.7609]
[1725476348285,25.9485,133.03,132.98,3.7597]
[1725476348486,3.7588,133.02,132.97,3.77087306]
[1725476348782,1.4312,133.03,132.99,3.7592]
[1725476349185,1.4312,133.03,132.97,3.7663602]
[1725476349380,0.05574484,133.01,133.0,3.759]
[1725476349588,0.05574484,133.01,132.99,0.05666763]
[1725476350085,0.05574484,133.01,132.99,3.81596763]
[1725476350485,0.05574484,133.01,133.0,3.7592]
[1725476353183,0.05574484,133.01,132.99,0.05666763]
[1725476353587,0.05574484,133.01,132.99,3.81596763]
[1725476354282,0.05574484,133.01,133.0,3.7592]
[1725476355381,0.05574484,133.01,132.99,3.81596763]
[1725476355790,0.05574484,133.01,132.99,0.05666763]
[1725476356589,0.05574484,133.01,133.0,3.7592]
[1725476358298,1.378,133.06,133.03,3.7581]
[1725476358895,5.1357,133.06,133.03,3.7581]
[1725476359395,5.18305151,133.06,133.03,3.81076852]
[1725476359796,5.18305151,133.06,133.04,3.758]
[1725476359991,5.18305151,133.06,133.03,0.05266852]
[1725476360386,5.18305151,133.06,133.03,3.81086852]
[1725476360901,3.7578,133.05,133.03,3.81086852]
[1725476362797,3.758,133.04,133.03,0.05266852]
[1725476363198,1.42535151,133.06,133.03,0.05266852]
[1725476363199,0.04735151,133.06,133.03,0.05266852]
[1725476363399,0.04735151,133.06,133.05,3.7577]
[1725476375304,0.04735151,133.06,133.04,3.7578]
[1725476375610,0.04735151,133.06,133.03,0.05266852]
[1725476376612,3.7579,133.05,133.03,0.05266852]
[1725476378315,3.7579,133.05,133.03,3.81096852]
[1725476378917,0.04735151,133.06,133.03,0.05266852]
[1725476379913,1.38105151,133.06,133.03,0.05266852]
[1725476380423,3.758,133.04,133.03,0.05266852]
[1725476386020,3.7585,133.03,133.0,3.759]
[1725476386224,5.19428082,133.05,133.0,3.759]
[1725476386819,3.7585,133.03,133.01,3.7588]
[1725476387129,3.8103493,133.03,133.01,3.81283563]
[1725476388820,0.0518493,133.03,133.01,0.05403563]
[1725476389025,0.0518493,133.03,133.02,3.7586]
[1725476400431,0.0518493,133.03,133.02,12.9986]
[1725476401525,11.9379,133.1,133.06,3.7574]
[1725476402133,3.7568,133.09,133.06,3.7574]
[1725476402339,46.2,133.07,132.92,7.5226]
[1725476402534,0.04951804,133.01,132.98,0.04932422]
[1725476402727,0.05767109,133.01,132.98,0.04758166]
[1725476403637,3.7592,133.0,132.98,0.04758166]
[1725476405243,3.7594,132.99,132.98,0.04758166]
[1725476406042,3.7593,133.0,132.98,0.04758166]
[1725476406739,53.721,133.0,132.83,7.5275]
[1725476407041,3.7607,132.95,132.91,3.7615]
[1725476407234,3.7607,132.95,132.91,7.48254392]
[1725476407433,3.7607,132.95,132.91,3.72104392]
[1725476407632,3.7607,132.95,132.89,9.24]
[1725476407835,0.05096321,132.94,132.92,0.04848895]
[1725476408935,3.81206321,132.94,132.92,0.04848895]
[1725476409541,0.05096321,132.94,132.92,0.04848895]
[1725476410536,0.05096321,132.94,132.92,3.80988895]
[1725476411133,3.81186321,132.94,132.92,0.04848895]
[1725476412044,0.05096321,132.94,132.92,0.04848895]
[1725476412947,0.05096321,132.94,132.93,3.7611]
[1725476416950,31.9917,133.03,132.97,3.7599]
[1725476417247,31.9917,133.03,132.91,1.3081]
[1725476417248,1.3076,133.02,132.94,23.13]
[1725476417441,3.7592,133.0,132.97,3.7599]
[1725476417841,3.7592,133.0,132.97,3.81495621]
[1725476418048,3.81022561,133.0,132.97,3.81495621]
[1725476418853,3.81022561,133.0,132.98,3.7597]
[1725476419150,0.05102561,133.0,132.98,3.7597]
[1725476419742,0.05102561,133.0,132.99,3.7594]
[1725476420048,26.32142443,133.1,132.99,3.7594]
[1725476420049,4.0524,133.09,132.99,23.13]
[1725476420246,3.7574,133.07,133.04,3.758]
[1725476421047,3.81074708,133.07,133.04,3.8157324]
[1725476421647,0.05334708,133.07,133.05,3.7577]
[1725476422145,0.05334708,133.07,133.04,0.0577324]
[1725476422550,23.13,133.06,133.04,0.0577324]
[1725476422851,3.7577,133.05,133.04,0.0577324]
[1725476423348,23.13,133.06,132.95,109.53667892]
[1725476423548,23.13,133.03,132.95,108.14227892]
[1725476423749,23.13,133.03,132.95,106.78507892]
[1725476423944,24.5652,133.03,132.95,106.78507892]
[1725476424249,23.13,132.99,132.95,106.78507892]
[1725476424549,0.05635752,132.98,132.96,0.05604734]
[1725476424749,3.81012642,132.98,132.96,0.05604734]
[1725476425148,0.05022642,132.98,132.96,0.05604734]
[1725476426148,0.05022642,132.98,132.96,3.81614734]
[1725476427047,3.80992642,132.98,132.96,0.05604734]
[1725476428153,0.05022642,132.98,132.96,3.81634734]
[1725476429646,3.81002642,132.98,132.96,0.05604734]
[1725476430154,0.05022642,132.98,132.96,0.05604734]
[1725476430555,3.76,132.97,132.96,0.05604734]
[1725476431658,3.81002642,132.98,132.96,0.05604734]
[1725476432557,3.76,132.97,132.96,0.05604734]
[1725476432761,0.05022642,132.98,132.96,0.05604734]
[1725476433061,3.76,132.97,132.96,0.05604734]
[1725476434861,0.05022642,132.98,132.96,0.05604734]
[1725476435463,0.05022642,132.98,132.97,7.49138551]
[1725476438362,24.4335,133.04,133.0,3.759]
[1725476438561,24.4335,133.04,132.97,26.86138551]
[1725476438562,1.3035,133.04,132.97,26.86138551]
[1725476438964,1.3035,133.04,133.01,3.7587]
[1725476439356,1.36037148,133.04,133.01,3.81364164]
[1725476439559,3.7584,133.03,133.01,0.05494164]
[1725476439765,1.36037148,133.04,133.01,0.05494164]
[1725476440262,3.7583,133.03,133.01,0.05494164]
[1725476440657,3.7586,133.02,133.01,0.05494164]
[1725476440960,24.49037148,133.04,133.01,0.05494164]
[1725476441358,3.7586,133.02,133.01,0.05494164]
[1725476447867,3.7584,133.03,133.01,0.05494164]
[1725476448073,0.05687148,133.04,133.01,0.05494164]
[1725476448471,3.81507148,133.04,133.01,0.05494164]
[1725476448773,3.81507148,133.04,133.02,3.7586]
[1725476449872,3.7583,133.03,133.01,3.81374164]
[1725476450977,3.81507148,133.04,133.01,3.81374164]
[1725476451477,3.81507148,133.04,133.02,3.7586]
[1725476451873,0.05687148,133.04,133.01,23.18494164]
[1725476452266,0.05687148,133.04,133.03,3.7583]
[1725476452872,0.05687148,133.04,133.03,26.8883]
[1725476453075,24.4983,133.11,133.06,3.7574]
[1725476453475,3.7569,133.08,133.04,3.68892591]
[1725476453671,24.4983,133.11,133.04,7.44672591]
[1725476453974,23.18254185,133.09,133.06,0.05054025]
[1725476454279,23.18785942,133.09,133.06,0.0529393]
[1725476454480,3.7572,133.07,133.06,0.0529393]
[1725476460278,3.7581,133.04,133.01,3.7587]
[1725476461185,3.7581,133.04,133.02,3.7586]
[1725476461384,3.80580507,133.04,133.02,3.81082493]
[1725476461686,3.80580507,133.04,133.02,0.05222493]
[1725476462183,0.04770507,133.04,133.02,0.05222493]
[1725476462482,0.04770507,133.04,133.03,3.7583]
[1725476464780,1.3683,133.11,133.03,23.13]
[1725476465083,1.3683,133.11,133.05,23.13]
[1725476465283,3.7566,133.09,133.06,3.7573]
[1725476465583,1.3683,133.11,133.05,26.88573265]
[1725476465879,1.4043,133.12,133.08,3.7566]
[1725476466178,0.05328107,133.11,133.09,0.04995242]
[1725476467480,3.80948107,133.11,133.09,0.04995242]
[1725476467680,0.05328107,133.11,133.09,0.04995242]
[1725476468481,3.7563,133.1,133.09,0.04995242]
[1725476470880,0.05328107,133.11,133.09,0.04995242]
[1725476471680,0.05328107,133.11,133.09,3.80655242]
[1725476472084,0.05328107,133.11,133.09,0.04995242]
[1725476473289,3.7563,133.1,133.09,0.04995242]
[1725476475382,3.80948107,133.11,133.09,0.04995242]
[1725476475777,0.05328107,133.11,133.09,3.80655242]
[1725476476379,0.05328107,133.11,133.09,0.04995242]
[1725476476987,3.7563,133.1,133.09,0.04995242]
[1725476477883,0.05328107,133.11,133.09,0.04995242]
[1725476478489,3.80938107,133.11,133.09,0.04995242]
[1725476479182,0.05328107,133.11,133.09,0.04995242]
[1725476479386,0.05328107,133.11,133.1,3.7563]
[1725476481888,0.05328107,133.11,133.1,26.8863]
[1725476482798,3.7546,133.17,133.14,3.755]
[1725476483191,3.68547599,133.19,133.14,3.755]
[1725476483992,32.0569,133.2,133.15,3.7548]
[1725476484299,0.0255789,133.19,133.16,0.04805754]
[1725476485192,0.0255789,133.19,133.17,3.7542]
[1725476485394,0.0255789,133.19,133.16,0.04805754]
[1725476486188,0.0255789,133.19,133.18,3.7541]
[1725476490090,0.0255789,133.19,133.18,26.8841]
[1725476493294,1.4347,133.26,133.18,23.13]
[1725476493501,5.1866,133.26,133.22,23.13]
[1725476493698,5.1866,133.26,133.23,3.7525]
[1725476493997,1.4347,133.26,133.2,3.72503667]
[1725476494192,3.7522,133.25,133.22,3.80604385]
[1725476495101,3.7522,133.25,133.23,3.7527]
[1725476495401,5.1866,133.26,133.23,3.7527]
[1725476497099,3.7521,133.25,133.23,3.7527]
[1725476498798,3.7524,133.24,133.22,3.80594385]
[1725476501606,3.7522,133.25,133.23,3.7526]
[1725476502905,1.4347,133.26,133.22,3.80604385]
[1725476503507,3.7525,133.24,133.22,3.80604385]
[1725476503704,1.4347,133.26,133.22,0.05324385]
[1725476505501,3.7522,133.25,133.22,0.05324385]
[1725476505702,1.4347,133.26,133.22,3.80624385]
[1725476506106,3.83155441,133.28,133.22,0.05324385]
[1725476506502,1.3117,133.3,133.25,23.13]
[1725476506703,4.99788618,133.3,133.26,0.04779981]
[1725476506904,1.3117,133.3,133.28,3.7511]
[1725476508308,5.0624,133.3,133.28,3.7511]
[1725476508607,1.2996,133.33,133.29,3.751]
[1725476508911,4.97689831,133.33,133.3,0.05249119]
[1725476509302,1.2996,133.33,133.3,0.05249119]
[1725476510209,1.4402,133.34,133.3,0.05249119]
[1725476510511,3.7501,133.33,133.3,3.80309119]
[1725476511009,3.7501,133.33,133.3,23.18249119]
[1725476511812,3.7502,133.32,133.3,0.05249119]
[1725476514406,5.17825811,133.36,133.3,0.05249119]
[1725476514608,23.13,133.35,133.3,0.05249119]
[1725476515111,3.7504,133.31,133.3,0.05249119]
[1725476515617,3.7503,133.32,133.3,0.05249119]
[1725476516819,3.7503,133.32,133.3,3.80299119]
[1725476517019,3.7503,133.32,133.3,0.05249119]
[1725476518820,3.7504,133.31,133.3,0.05249119]
[1725476521119,28.30825811,133.36,133.3,23.18249119]
[1725476521120,1.3717,133.36,133.3,23.18249119]
[1725476521315,1.3922,133.37,133.32,23.13]
[1725476521517,1.3595,133.38,133.34,26.8795]
[1725476521715,3.7489,133.37,133.34,26.8795]
[1725476522323,3.7491,133.36,133.34,26.8795]
[1725476523229,1.3553,133.4,133.35,3.7493]
[1725476523419,1.3553,133.4,133.36,0.04868798]
[1725476523614,1.3553,133.4,133.36,23.17868798]
[1725476523815,1.3553,133.4,133.36,0.04868798]
[1725476524919,3.7487,133.37,133.36,0.04868798]
[1725476526718,3.7486,133.38,133.36,0.04868798]
[1725476527923,2.7124,133.42,133.37,23.13]
[1725476527924,6.4599,133.42,133.37,23.13]
[1725476528126,2.7124,133.42,133.37,23.13]
[1725476528526,3.7478,133.41,133.38,3.7483]
[1725476529230,3.7474,133.42,133.37,23.13]
[1725476529523,3.71034275,133.45,133.37,23.13]
[1725476529729,3.7475,133.42,133.4,0.05619958]
[1725476529922,2.7845,133.46,133.4,0.05619958]
[1725476530132,6.56374415,133.46,133.4,0.05619958]
[1725476530327,3.7476,133.41,133.4,0.05619958]
[1725476530527,3.76724655,133.42,133.35,23.13]
[1725476530824,23.13,133.43,133.35,23.13]
[1725476530825,1.4162,133.41,133.35,23.13]
[1725476531026,25.9111,133.41,133.33,23.13]
[1725476531226,29.62623197,133.41,133.33,23.13]
[1725476531420,3.7483,133.39,133.35,3.7491]
[1725476531625,0.0486091,133.38,133.36,0.0577658]
[1725476532227,3.7972091,133.38,133.36,0.0577658]
[1725476532435,3.7972091,133.38,133.36,3.8067658]
[1725476532635,3.7972091,133.38,133.36,0.0577658]
[1725476534323,0.0486091,133.38,133.36,0.0577658]
[1725476534529,0.0486091,133.38,133.37,23.13]
[1725476535529,4.0486091,133.38,133.37,23.13]
[1725476536228,4.0486091,133.38,133.36,0.0577658]
[1725476536229,7.7971091,133.38,133.36,0.0577658]
[1725476536633,4.0486091,133.38,133.36,3.8065658]
[1725476538333,4.0486091,133.38,133.37,3.7487]
[1725476539030,4.0486091,133.38,133.36,3.8067658]
[1725476540033,4.0486091,133.38,133.37,3.7487]
[1725476541334,4.0486091,133.38,133.37,26.8787]
[1725476545234,4.0486091,133.38,133.36,0.0577658]
[1725476545437,4.0486091,133.38,133.31,23.13]
[1725476545832,3.7492,133.36,133.34,3.7496]
[1725476546040,4.0486091,133.38,133.34,23.13]
[1725476546440,3.749,133.36,133.35,0.05290873]
[1725476547841,3.7488,133.37,133.35,0.05290873]
[1725476548039,4.0486091,133.38,133.35,0.05290873]
[1725476548249,4.0486091,133.38,133.3,26.92311637]
[1725476549040,4.0486091,133.38,133.3,23.13]
[1725476549436,4.0486091,133.38,133.33,0.05484642]
[1725476549845,3.7496,133.34,133.33,0.05484642]
[1725476550045,0.05621854,133.35,133.27,23.13]
[1725476550345,3.7506,133.31,133.26,3.7516]
[1725476550542,4.99459651,133.33,133.26,26.8816]
[1725476550935,4.99459651,133.33,133.26,23.13]
[1725476550936,1.3002,133.33,133.26,23.13]
[1725476551135,0.04803669,133.31,133.28,23.18425254]
[1725476551740,0.04803669,133.31,133.28,26.93535254]
[1725476552139,0.04803669,133.31,133.28,23.18425254]
[1725476552343,0.04803669,133.31,133.29,3.7509]
[1725476552648,0.04803669,133.31,133.28,23.18425254]
[1725476552943,4.0,133.38,133.3,23.13]
[1725476553143,4.0,133.38,133.32,23.13]
[1725476553449,4.0,133.38,133.32,26.8801]
[1725476553745,4.0,133.38,133.32,23.13]
[1725476553948,0.05390797,133.36,133.34,0.05246826]
[1725476554149,3.7493,133.35,133.34,0.05246826]
[1725476557754,3.80310797,133.36,133.34,0.05246826]
[1725476558156,3.80310797,133.36,133.34,23.18246826]
[1725476558857,3.7493,133.35,133.34,23.18246826]
[1725476560358,3.80300797,133.36,133.34,23.18246826]
[1725476560660,0.05390797,133.36,133.35,26.8793]
[1725476570863,0.05390797,133.36,133.34,0.05246826]
[1725476571468,3.7493,133.35,133.34,0.05246826]
[1725476574365,3.80300797,133.36,133.34,0.05246826]
[1725476575060,0.05390797,133.36,133.35,23.13]
[1725476575263,0.05390797,133.36,133.34,0.05246826]
[1725476575664,0.05390797,133.36,133.34,3.80186826]
[1725476577865,0.05390797,133.36,133.35,3.7493]
[1725476578060,0.05390797,133.36,133.35,26.8793]
[1725476579970,4.0,133.38,133.37,3.7487]
[1725476580170,4.0,133.38,133.37,26.8787]
[1725476586374,4.0,133.38,133.36,23.13]
[1725476586572,4.0,133.38,133.34,23.18246826]
[1725476586978,7.7486,133.38,133.34,23.18246826]
[1725476587878,7.7486,133.38,133.35,3.7492]
[1725476588172,3.7488,133.37,133.35,9.22]
[1725476588476,13.22,133.38,133.34,0.05246826]
[1725476588672,1.3956,133.36,133.34,0.05246826]
[1725476589179,1.3956,133.36,133.34,9.27246826]
[1725476589376,1.3956,133.36,133.34,13.02196826]
[1725476590075,1.3956,133.36,133.34,3.80196826]
[1725476591879,5.1446,133.36,133.34,3.80196826]
[1725476592674,6.4876,133.37,133.34,3.80196826]
[1725476592880,4.0,133.38,133.35,3.7492]
[1725476593580,7.7486,133.38,133.35,3.7492]
[1725476594582,7.7486,133.38,133.36,3.749]
[1725476594879,7.7486,133.38,133.35,23.05]
[1725476594880,4.0,133.38,133.35,23.05]
[1725476595176,4.0,133.38,133.37,26.7987]
[1725476595579,4.0,133.38,133.37,23.05]
[1725476595776,4.0,133.38,133.36,3.7489]
[1725476596776,7.7485,133.38,133.36,3.7489]
[1725476597678,7.7485,133.38,133.37,3.7487]
[1725476597679,4.0,133.38,133.37,3.7487]
[1725476601078,0.04961138,133.39,133.38,3.7485]
[1725476601384,0.04961138,133.39,133.38,26.7985]
[1725476601986,1.3463,133.46,133.38,23.05]
[1725476602283,1.3463,133.46,133.42,23.05]
[1725476602584,3.7466,133.45,133.42,23.05]
[1725476603089,0.05036769,133.45,133.42,3.80444723]
[1725476603988,3.79696769,133.45,133.42,3.80444723]
[1725476604184,3.79696769,133.45,133.43,3.747]
[1725476604489,3.79696769,133.45,133.42,0.05724723]
[1725476604881,0.05036769,133.45,133.42,23.10724723]
[1725476605085,0.05036769,133.45,133.44,23.05]
[1725476605784,0.05036769,133.45,133.44,26.7968]
[1725476608488,1.388,133.5,133.46,3.7462]
[1725476608685,1.388,133.5,133.46,23.05]
[1725476609080,1.388,133.5,133.47,3.7458]